[Event "NY Presidents Day IM-B 2024"]
[Site "New York"]
[Date "2024.02.19"]
[Round "7.2"]
[White "Poliannikov, Danila"]
[Black "Lee, Megan"]
[Result "1-0"]
[ECO "B70"]
[WhiteElo "2282"]
[BlackElo "2267"]
[Annotator "TA"]
[PlyCount "115"]
[EventDate "2024.02.14"]
[EventType "schev"]
[EventCountry "USA"]
[SourceTitle "playchess.com"]
[Source "ChessBase"]
[SourceQuality "1"]
[TimeControl "5400+30"]

{[%evp 39,115,-121,-56,-40,-54,-72,-79,-124,-97,-95,-95,-143,-79,-81,-80,-94,-57,-44,-35,-78,-79,-68,-89,-77,-77,-77,-68,-58,-69,-63,-69,-117,-126,-196,-217,-295,-147,-166,-163,-116,-128,-129,0,0,0,0,143,131,122,0,34,12,212,229,202,287,228,362,225,78,514,378,796,782,4566,232,239,28,1876,1847,1738,1681,1517,1246,29978,29979,29982,29983]} 1. e4 {[%emt 0:00:02]} c5 {[%emt 0:00:04]} 2. Nf3 {[%emt 0:00:03]} d6 {[%emt 0:00:04]} 3. d4 {[%emt 0:00:01]} cxd4 {[%emt 0:00:08]} 4. Nxd4 {[%emt 0:00:02]} Nf6 {[%emt 0:00:07]} 5. Nc3 {[%emt 0:00:02]} Nc6 {[%emt 0:00:06]} 6. g3 {[%emt 0:00:03]} g6 {[%emt 0:00:22]} 7. Nxc6 {[%emt 0:00:04]} bxc6 {[%emt 0:00:06]} 8. Bg2 {[%emt 0:00:03]} Qc7 {[%emt 0:08:04]} 9. b3 {[%emt 0:00:28]} Bg7 {[%emt 0:03:16]} 10. Bb2 {[%emt 0:00:10]} Ba6 {[%emt 0:06:17]} 11. Qd2 {[%emt 0:06:46]} O-O {[%emt 0:02:31]} 12. O-O-O {[%emt 0:00:32]} Rad8 {[%emt 0:01:42]} 13. f4 {[%emt 0:03:58]} e5 {[%emt 0:07:22]} 14. Kb1 {[%emt 0:06:59]} Rfe8 {[%emt 0:03:48]} 15. Rhe1 {[%emt 0:01:57]} Bh6 {[%emt 0:05:25]} 16. Qf2 {[%emt 0:13:17]} Ng4 {[%emt 0:02:40]} 17. Qg1 {[%emt 0:01:11]} exf4 {[%emt 0:01:36]} 18. gxf4 {[%emt 0:00:25]} Bxf4 {[%emt 0:01:36]} 19. Bf1 {[%emt 0:08:05]} Bc8 {[%emt 0:00:25]} 20. Bh3 {[%emt 0:00:32]} (20. Be2 $1 $15 Be3 (20... Nxh2 21. Qg2 $11) (20... Bxh2 21. Qg2 $16) 21. Qg2 Nf2) 20... Ne5 {[%emt 0:03:17]} (20... Bxh2 21. Qg2 $18) ({Black should play} 20... Nf6 $17 21. Bg2 Be5) 21. Bxc8 {[%emt 0:00:16]} Rxc8 {[%emt 0:01:36]} 22. Rf1 {[%emt 0:08:42]} Bh6 {[%emt 0:01:11]} 23. Rf6 {[%emt 0:00:40]} Rcd8 {[%emt 0:03:12]} 24. Qd4 {[%emt 0:01:41]} Bf8 {[%emt 0:04:26]} 25. Ba3 {[%emt 0:16:24]} (25. h3 $142) 25... Re6 {[%emt 0:01:46]} ({Better is} 25... Qb6 26. Rf4 Qxd4 27. Rxd4 Bg7 28. Rxd6 Nc4 29. bxc4 Bxc3) 26. Rxe6 $17 {[%emt 0:00:41]} fxe6 {[%emt 0:00:01]} 27. Ne2 {[%emt 0:01:36]} Nf7 {[%emt 0:04:25]} 28. Bb2 {[%emt 0:01:06]} d5 {[%emt 0:04:55]} 29. Qf6 {[%emt 0:03:24]} e5 {[%emt 0:01:51]} (29... dxe4 30. Rf1 $15) (29... Qxh2 30. Nf4 Qf2 31. Rh1 $16) 30. exd5 {[%emt 0:07:32]} cxd5 {[%emt 0:00:55]} 31. Nc3 {[%emt 0:00:13]} d4 {[%emt 0:06:27]} 32. Ne4 {[%emt 0:00:10]} Bg7 {[%emt 0:01:07]} 33. Qe6 {[%emt 0:01:43]} Qd7 {[%emt 0:04:10]} 34. Qxd7 {[%emt 0:00:47]} Rxd7 {[%emt 0:00:02]} 35. c4 {[%emt 0:00:17]} (35. c3 $15) 35... Nd6 $1 $17 {[%emt 0:02:03]} 36. Nxd6 {[%emt 0:00:38]} (36. Nd2 $17) 36... Rxd6 $19 {[%emt 0:00:01]} 37. c5 {[%emt 0:00:07]} Rc6 {[%emt 0:01:52]} (37... Rd8 $19 {Hoping for ...Kf7.} 38. c6 Rc8) 38. b4 $17 {[%emt 0:00:18]} Kf7 {[%emt 0:00:32]} 39. Re1 {[%emt 0:00:27]} g5 {[%emt 0:02:22]} 40. Kc2 {[%emt 0:00:52] [#]} Rf6 {[%emt 0:02:17]} (40... e4 $1 $17 {Strongly threatening ...d3+.} 41. Kd2 (41. Rxe4 $2 d3+ 42. Kxd3 Bxb2 $19) 41... Re6) 41. b5 $11 {[%emt 0:01:52]} Rf2+ {[%emt 0:03:22]} 42. Kb3 {[%emt 0:00:25]} d3 {[%emt 0:03:21]} (42... Rxh2 $6 43. a4 $18 (43. c6 Rh3+ 44. Ka4 Ke7 $16)) (42... Rf3+ $11 43. Ka4 (43. Kc4 Rf2 $11) 43... Ke7 (43... Rf2 44. c6 $11)) 43. c6 $16 {[%emt 0:01:54]} Ke6 {[%emt 0:01:27]} 44. Rd1 {[%emt 0:01:36]} (44. Bc3 $16) 44... Rxh2 {[%emt 0:01:59]} 45. a4 {[%emt 0:05:34]} (45. Rxd3 $2 e4 $19) 45... Rc2 $2 {[%emt 0:02:34]} (45... Rxb2+ $1 $11 46. Kxb2 e4+ 47. Kb1 Be5) 46. Bc3 $1 $18 {[%emt 0:01:02]} (46. Rxd3 $2 Rxb2+ (46... e4 47. Rd6+ Kxd6 48. Ba3+ Kc7 49. Kxc2 $19) 47. Ka3 (47. Kxb2 $2 e4+ 48. Kc2 exd3+ $19) 47... e4 $19 (47... Rc2 $2 48. Rd7 $19)) 46... Rxc3+ {[%emt 0:04:22]} 47. Kxc3 {[%emt 0:00:03]} e4+ {[%emt 0:00:03]} 48. Kc4 {[%emt 0:01:06]} Kd6 {[%emt 0:00:31]} 49. a5 {[%emt 0:04:38]} g4 $2 {[%emt 0:00:43][%mdl 8192]} (49... Be5 $16 {is tougher.}) 50. a6 $18 {[%emt 0:01:04]} Kc7 {[%emt 0:01:05]} (50... h5 $2 51. b6 axb6 52. a7 $18) 51. Kd5 {[%emt 0:00:14]} Bc3 {[%emt 0:00:48]} 52. Kxe4 $2 {[%emt 0:00:27]} (52. b6+ Kxb6 53. Kd6 (53. Kxe4 d2 $11) (53. Rb1+ Kc7 $11) 53... Be5+ 54. Kxe5 Kxc6 55. Rb1 (55. Kxe4 h5 $18)) 52... d2 $18 {[%emt 0:00:07]} 53. Kf4 $2 {[%emt 0:01:31]} ({White must play} 53. Kd3 $18 Ba5 54. Ke2) 53... Ba5 $2 {[%emt 0:01:23][%mdl 8192]} (53... h5 $11) 54. Kxg4 $18 {[%emt 0:00:34]} Kb6 {[%emt 0:00:00] [#]} 55. Rb1 $1 {[%emt 0:00:50]} Kc5 {[%emt 0:00:10]} 56. Kf3 {[%emt 0:00:38]} d1=Q+ {[%emt 0:02:28]} 57. Rxd1 {[%emt 0:00:07]} Kxb5 {[%emt 0:00:00]} 58. Rd5+ {[%emt 0:00:13]} 1-0

[Event "NY Presidents Day IM-B 2024"]
[Site "New York"]
[Date "2024.02.19"]
[Round "7.3"]
[White "Wongso, Steve"]
[Black "Rajesh, C.S."]
[Result "0-1"]
[ECO "B47"]
[WhiteElo "2229"]
[BlackElo "2218"]
[Annotator "TA"]
[PlyCount "108"]
[EventDate "2024.02.14"]
[EventType "schev"]
[EventCountry "USA"]
[SourceTitle "playchess.com"]
[Source "ChessBase"]
[SourceQuality "1"]
[TimeControl "5400+30"]

{[%evp 9,108,16,38,4,8,0,0,0,0,-14,5,6,0,-4,-8,-12,-30,-31,-34,-80,-62,-61,-55,-56,-60,-52,-69,-154,-128,-111,-95,-99,-60,-70,-62,-70,-57,-72,-41,-45,-50,-39,-35,-23,0,0,0,0,0,0,0,0,0,-31,-16,-87,-87,-140,-122,-159,-139,-191,-179,-185,-167,-253,-237,-276,-287,-443,-443,-443,-443,-443,-443,-1245,-1173,-1217,-1187,-1206,-1066,-1276,-1226,-1337,-1304,-1551,-1728,-1991,-1876,-2179,-2179,-1848,-1649,-29947,-29950,-12785,-29938,-12802,-12772,-6083,-5128]} 1. e4 {[%emt 0:00:05]} c5 {[%emt 0:00:10]} 2. Nf3 {[%emt 0:00:14]} e6 {[%emt 0:00:01]} 3. d4 {[%emt 0:00:05]} cxd4 {[%emt 0:00:03]} 4. Nxd4 {[%emt 0:00:05]} Nc6 {[%emt 0:00:01]} 5. Nc3 {[%emt 0:00:10]} Qc7 {[%emt 0:00:04]} 6. g4 {[%emt 0:00:17]} a6 {[%emt 0:01:23]} 7. Be3 {[%emt 0:00:32]} b5 {[%emt 0:00:31]} 8. Nxc6 {[%emt 0:05:20] Die Stellung ist ausgeglichen.} Qxc6 {[%emt 0:00:29]} 9. f3 {[%emt 0:04:43]} b4 {[%emt 0:04:46]} 10. Ne2 {[%emt 0:00:39]} Bb7 {[%emt 0:00:04]} 11. Qd2 {[%emt 0:02:23]} d5 {[%emt 0:01:39]} 12. Nd4 {[%emt 0:14:37]} Qc7 {[%emt 0:03:49]} 13. exd5 {[%emt 0:12:18]} Bxd5 {[%emt 0:04:06]} 14. Bg2 {[%emt 0:08:20]} (14. Be2 $15 {verdient Beachtung.}) 14... Nf6 {[%emt 0:04:22]} 15. g5 {[%emt 0:01:24]} Nd7 {[%emt 0:00:41] Schwarz steht aktiver.} 16. f4 {[%emt 0:01:57]} Nb6 {[%emt 0:04:48]} 17. Bxd5 {[%emt 0:19:18]} Nxd5 {[%emt 0:00:10]} 18. Ne2 {[%emt 0:00:25]} (18. O-O-O $15) 18... Nxe3 {[%emt 0:04:52]} 19. Qxe3 {[%emt 0:00:04]} Rd8 {[%emt 0:03:08]} (19... Qxc2 20. Rc1 Qf5 (20... Qxb2 21. Qf3 $11) 21. Qf3 $11) 20. Rd1 {[%emt 0:10:06]} Rxd1+ {[%emt 0:01:36]} ({Ein No Go ist} 20... Qxc2 21. Rxd8+ Kxd8 22. O-O $11) 21. Kxd1 {[%emt 0:01:11]} Bc5 {[%emt 0:02:40]} 22. Qe4 {[%emt 0:00:50]} O-O {[%emt 0:00:36]} 23. Kc1 {[%emt 0:00:07]} Qa5 {[%emt 0:08:23]} 24. Kb1 {[%emt 0:00:31]} Rd8 {[%emt 0:00:06]} 25. Nc1 {[%emt 0:03:44]} Rd5 {[%emt 0:05:37]} 26. h4 {[%emt 0:01:30][%cal Bh2h4,Bh4h5][%mdl 32]} Qd8 {[%emt 0:03:57]} 27. Nd3 {[%emt 0:00:57]} Bf8 {[%emt 0:04:45]} 28. h5 {[%emt 0:00:18][%cal Og5g6]} (28. Nxb4 $2 {wird mattgesetzt.} Rd1+ 29. Rxd1 Qxd1#) 28... Rd4 {[%emt 0:00:04]} 29. Qe3 {[%emt 0:03:06][%cal Og5g6]} Qd5 {[%emt 0:02:23]} 30. Re1 {[%emt 0:00:04]} a5 {[%emt 0:03:59]} 31. Qg3 {[%emt 0:03:52]} a4 {[%emt 0:02:43]} 32. g6 {[%emt 0:02:14]} (32. b3 $11 {hält das Gleichgewicht.}) 32... Qxh5 $17 {[%emt 0:02:21] Die Straße ins Nirgendwo für Weiß.} 33. gxf7+ {[%emt 0:00:07]} ({Besser ist} 33. Qe3 Rd5 34. gxf7+ Qxf7 35. Qb6) 33... Qxf7 {[%emt 0:00:16]} 34. Qe3 {[%emt 0:00:07]} Qf6 {[%emt 0:05:46]} 35. Qxe6+ {[%emt 0:03:00]} (35. Qh3 $17) 35... Qxe6 $19 {[%emt 0:00:04]} 36. Rxe6 $17 {[%emt 0:00:04][%mdl 4096] Endspiel. [#] KRB-KRN} Bd6 $1 {[%emt 0:02:52]} 37. Kc1 {[%emt 0:01:20]} (37. Re8+ $142 Kf7 38. Ra8) 37... Bxf4+ $19 {[%emt 0:01:42]} 38. Nxf4 {[%emt 0:00:05]} Rxf4 {[%emt 0:00:02] KR-KR} 39. Ra6 {[%emt 0:00:29]} (39. Re5 $142) 39... h5 {[%emt 0:02:05]} 40. Rxa4 {[%emt 0:00:11]} h4 {[%emt 0:00:01]} 41. Ra5 {[%emt 0:00:10]} Kh7 {[%emt 0:00:33] Und jetzt ...Kg6 wäre schön.} 42. Rh5+ {[%emt 0:01:54]} (42. a4 $142 Rf6 43. Rg5) 42... Kg6 {[%emt 0:00:54]} 43. Rh8 {[%emt 0:00:14]} Kf5 {[%emt 0:00:56]} 44. Kd2 {[%emt 0:00:13]} g5 {[%emt 0:00:53] Zielt auf ...Kg4 ab.} 45. c3 {[%emt 0:01:38]} Kg4 {[%emt 0:04:26]} 46. cxb4 {[%emt 0:00:47]} Rxb4 {[%emt 0:00:06]} 47. Kc3 {[%emt 0:00:08]} Ra4 {[%emt 0:00:06]} 48. Kb3 {[%emt 0:00:38]} Ra7 {[%emt 0:00:48] Droht ...h3 und aus.} 49. a4 {[%emt 0:00:31]} h3 {[%emt 0:00:28]} 50. Kb4 {[%emt 0:00:11]} Kg3 {[%emt 0:00:12] Weiss muss nun ...h2 beachten.} 51. a5 {[%emt 0:01:14]} h2 {[%emt 0:00:13]} 52. Ka4 {[%emt 0:00:40] [#]} Ra8 $3 {[%emt 0:00:40][%mdl 512]} 53. Rxa8 {[%emt 0:01:17]} h1=Q {[%emt 0:00:06]} (53... h1=R $2 {ist das falsche Schlagen.} 54. a6 $18) 54. Rb8 {[%emt 0:01:06]} Qa1+ {[%emt 0:00:11] Gewichteter Fehlerwert: Weiß=0.58/Schwarz=0.07 (makellos) .  Fehler:       	Weiß=8     	---        Ungenau:       	Weiß=2     	Schwarz=2     OK:         	Weiß=17    	Schwarz=15    Bester:       	Weiß=1     	Schwarz=3     Stark:        	---       	Schwarz=1} 0-1

[Event "NY Presidents Day IM-B 2024"]
[Site "New York"]
[Date "2024.02.19"]
[Round "7.4"]
[White "Graif, William"]
[Black "Bortnyk, Mykola"]
[Result "0-1"]
[ECO "B23"]
[WhiteElo "2302"]
[BlackElo "2421"]
[Annotator "TA"]
[PlyCount "104"]
[EventDate "2024.02.14"]
[EventType "schev"]
[EventCountry "USA"]
[SourceTitle "playchess.com"]
[Source "ChessBase"]
[SourceQuality "1"]
[TimeControl "5400+30"]

{[%evp 14,104,25,20,22,17,14,4,0,12,9,3,11,8,13,6,6,0,0,-6,-16,-21,-23,-26,-27,-27,-23,-31,-4,-50,-29,-23,-45,-35,-33,-78,0,0,0,-105,-110,-97,-102,-130,-104,-121,-114,-107,-121,-133,-118,-120,-132,-134,-139,-147,-149,-158,-146,-158,-141,-146,-139,-162,-162,-198,-186,-185,-195,-154,-100,-99,-51,-99,-72,-114,-123,-175,-179,-213,-195,-221,-219,-247,-210,-326,-326,-545,-525,-1239,-908,-1589,-1538]} 1. e4 {[%emt 0:01:51]} c5 {[%emt 0:00:11]} 2. Nc3 {[%emt 0:00:17]} e6 {[%emt 0:00:11]} 3. Nge2 {[%emt 0:00:30]} Nc6 {[%emt 0:01:44]} 4. g3 {[%emt 0:00:08]} d5 {[%emt 0:01:49]} 5. exd5 {[%emt 0:00:08]} exd5 {[%emt 0:00:02]} 6. d4 {[%emt 0:00:09]} Bg4 {[%emt 0:00:38]} 7. Bg2 {[%emt 0:00:11] B23: Closed Sicilian: Lines without g3.} Nxd4 {[%emt 0:01:11]} 8. h3 {[%emt 0:00:13]} Bf3 {[%emt 0:01:57]} 9. Kf1 $1 {[%emt 0:00:07]} Nf6 {[%emt 0:01:38]} (9... Ne7 {simplifies} 10. Bxf3 Nxf3 11. Nf4 Ne5) 10. Bg5 $146 {[%emt 0:13:38]} ({Predecessor:} 10. Bxf3 Nxf3 11. Nf4 Nd4 12. Be3 g5 13. Nfxd5 Nxd5 14. Bxd4 Rg8 15. Qe2+ Be7 16. Re1 Nxc3 17. Bxc3 Rg6 18. Qf3 Qd7 19. Bf6 O-O-O 20. Bxe7 {1-0 Jovanovic,Z (2512)-Kallai,G (2459) HUN-chT 1920 2019 (1.3)}) 10... Nxe2 {[%emt 0:17:34]} 11. Bxf3 {[%emt 0:01:28]} Nxc3 {[%emt 0:00:04]} 12. bxc3 {[%emt 0:00:21]} Be7 {[%emt 0:00:03]} 13. Bxf6 {[%emt 0:27:39]} Bxf6 {[%emt 0:00:20]} 14. Bxd5 {[%emt 0:01:52]} O-O {[%emt 0:00:57]} 15. Rb1 {[%emt 0:02:12]} Rb8 {[%emt 0:01:19]} 16. Kg2 {[%emt 0:07:17]} b5 {[%emt 0:02:50]} 17. c4 {[%emt 0:08:41]} b4 {[%emt 0:00:21]} 18. Qf3 {[%emt 0:25:11]} Rb6 {[%emt 0:03:12]} 19. a3 {[%emt 0:02:03]} Bd4 {[%emt 0:01:01]} 20. Qd3 {[%emt 0:01:11]} Qf6 {[%emt 0:01:51]} 21. f4 {[%emt 0:01:03]} (21. Rhf1 $11 {deserves consideration.}) 21... Bc3 {[%emt 0:00:56]} 22. axb4 {[%emt 0:01:06]} cxb4 {[%emt 0:00:02]} 23. c5 {[%emt 0:00:30]} Rbb8 {[%emt 0:00:15]} 24. Qc4 {[%emt 0:02:31]} Rbe8 {[%emt 0:01:28]} (24... Rbc8 $17 25. Rhd1 a5) 25. c6 $11 {[%emt 0:00:28]} Qg6 {[%emt 0:01:45]} 26. Qd3 {[%emt 0:00:31]} (26. c7 $11 {keeps the balance.} Qxc2+ 27. Kf3) 26... Qxd3 $17 {[%emt 0:00:50]} 27. cxd3 {[%emt 0:00:01]} Rc8 {[%emt 0:00:07]} 28. Rhc1 {[%emt 0:01:56]} Rfd8 {[%emt 0:00:12]} 29. Be4 {[%emt 0:00:08]} a5 {[%emt 0:00:05]} 30. Rc2 {[%emt 0:00:58]} f5 {[%emt 0:02:04]} 31. Bxf5 {[%emt 0:00:14]} Rxc6 {[%emt 0:00:01]} 32. Ra2 {[%emt 0:00:33]} Rc5 {[%emt 0:00:27]} 33. Be4 {[%emt 0:00:33]} Rb8 {[%emt 0:00:39]} 34. Rb3 {[%emt 0:00:37]} Bd4 {[%emt 0:00:10]} 35. Kf3 {[%emt 0:00:12]} Kf7 {[%emt 0:00:09]} 36. g4 {[%emt 0:00:42]} h6 {[%emt 0:00:06]} 37. h4 {[%emt 0:00:16]} Ke7 {[%emt 0:00:12]} 38. Bg6 {[%emt 0:00:31]} Rb6 {[%emt 0:00:38]} 39. Re2+ {[%emt 0:00:34]} Re6 {[%emt 0:00:35]} 40. Rxe6+ {[%emt 0:00:17]} Kxe6 {[%emt 0:00:01]} 41. Ke4 {[%emt 0:00:21]} Rc3 {[%emt 0:01:21]} (41... Bc3 $142 {Hoping for ...a4.} 42. Be8 g5 43. hxg5 hxg5) 42. Rb1 $17 {[%emt 0:00:41]} Bc5 {[%emt 0:00:02]} ({Black should play} 42... Bb6 $17 43. g5 Ke7) 43. Ra1 {[%emt 0:00:29]} (43. d4 $15 Be7 44. g5) 43... Bb6 $17 {[%emt 0:00:31]} 44. Be8 {[%emt 0:00:54]} Rc2 {[%emt 0:00:28]} 45. f5+ {[%emt 0:00:28]} (45. Re1 $17 {is a better defense.}) 45... Kd6 $19 {[%emt 0:00:08]} 46. Ba4 {[%emt 0:00:27]} Re2+ {[%emt 0:00:10]} 47. Kf4 {[%emt 0:00:12]} Bd4 {[%emt 0:00:32]} 48. Rc1 {[%emt 0:00:32]} Ra2 {[%emt 0:00:48]} 49. Bb3 {[%emt 0:01:08]} (49. Ke4 $142 Bc3 50. Bb3) 49... Ra3 $19 {[%emt 0:00:05]} 50. Bf7 $2 {[%emt 0:00:51]} (50. Rb1 {only move.}) 50... b3 $19 {[%emt 0:00:10]} (50... Rxd3 51. Ke4 Rd2 52. Rc8 $17) 51. Rb1 {[%emt 0:00:36]} b2 {[%emt 0:00:07]} 52. f6 {[%emt 0:00:16]} gxf6 {[%emt 0:00:15]} 0-1

[Event "NY Presidents Day IM-B 2024"]
[Site "New York"]
[Date "2024.02.19"]
[Round "7.5"]
[White "Tanenbaum, Zachary"]
[Black "Lima, Darcy"]
[Result "1/2-1/2"]
[ECO "B51"]
[WhiteElo "2272"]
[BlackElo "2370"]
[Annotator "TA"]
[PlyCount "101"]
[EventDate "2024.02.14"]
[EventType "schev"]
[EventCountry "USA"]
[SourceTitle "playchess.com"]
[Source "ChessBase"]
[SourceQuality "1"]
[TimeControl "5400+30"]

{[%evp 14,101,21,11,14,0,5,-38,-28,-66,0,0,-7,-14,0,-26,0,0,0,6,72,0,0,-5,-14,-22,0,0,8,0,0,0,0,0,0,0,0,0,0,0,0,-50,0,0,0,-100,-86,-215,16,7,20,0,0,0,0,0,0,0,9,0,56,56,50,54,87,87,91,90,105,83,96,68,68,57,61,61,61,61,61,61,68,68,61,8,8,0,32,28,41,0]} 1. e4 {[%emt 0:18:53]} e5 {[%emt 0:00:09]} 2. Nf3 {[%emt 0:00:25]} Nc6 {[%emt 0:00:13]} 3. Bc4 {[%emt 0:00:02]} d6 {[%emt 0:00:17]} 4. Nc3 {[%emt 0:00:18]} Na5 {[%emt 0:04:11]} 5. Bb5+ {[%emt 0:04:53]} c6 {[%emt 0:00:25]} 6. Be2 {[%emt 0:00:23]} c5 {[%emt 0:00:08]} 7. Bb5+ {[%emt 0:02:23]} Nc6 {[%emt 0:01:29]} 8. O-O {[%emt 0:07:22]} Be7 {[%emt 0:04:57]} 9. Ne2 {[%emt 0:13:26]} Nf6 {[%emt 0:11:29]} 10. Ng3 {[%emt 0:00:31]} h5 {[%emt 0:00:46] Black is slightly better.} 11. c3 {[%emt 0:09:49]} Qb6 {[%emt 0:08:25]} (11... h4 $15 12. Nf5 Bxf5 (12... Nxe4 13. Nxe7 Kxe7 14. d4 $14) 13. exf5 a6) 12. Ba4 $11 {[%emt 0:11:21]} h4 {[%emt 0:07:40]} 13. Nf5 {[%emt 0:00:13]} Bxf5 {[%emt 0:03:28]} 14. exf5 {[%emt 0:00:11]} h3 {[%emt 0:00:25]} 15. g3 {[%emt 0:01:40]} Kf8 {[%emt 0:01:52]} 16. d4 {[%emt 0:06:46]} e4 {[%emt 0:06:45]} (16... exd4 $11 17. cxd4 cxd4) 17. dxc5 {[%emt 0:00:58]} (17. d5 $1 $16) 17... Qxc5 {[%emt 0:00:45]} 18. Be3 {[%emt 0:00:30]} Qxf5 {[%emt 0:00:27]} 19. Nd4 {[%emt 0:00:34]} Nxd4 {[%emt 0:05:55]} 20. Bxd4 {[%emt 0:00:13]} Ng4 $132 {[%emt 0:09:09][%mdl 2048] Black is not holding back} 21. Bb3 {[%emt 0:16:08]} Ne5 {[%emt 0:17:21]} 22. Bxe5 {[%emt 0:00:24]} (22. f4 {with more complications.} Nf3+ 23. Kh1 Rh5 24. Be3) 22... dxe5 {[%emt 0:00:19]} 23. Qe2 {[%emt 0:00:31]} Rd8 {[%emt 0:05:23]} 24. Rad1 {[%emt 0:00:28] Repels Rd2} Rxd1 {[%emt 0:00:17]} 25. Rxd1 {[%emt 0:00:14]} Rh6 {[%emt 0:00:06]} 26. Bc2 {[%emt 0:01:41]} Rb6 {[%emt 0:02:22]} 27. b4 {[%emt 0:00:41]} (27. Qxe4 $2 Qxe4 28. Bxe4 Rxb2 $19) (27. Bxe4 $11 Rxb2 28. Qxb2 Qxe4 29. Kf1) 27... Qc8 {[%emt 0:00:27]} (27... Qf3 $15 28. Qxf3 exf3) 28. Qh5 {[%emt 0:01:28]} (28. Qxe4 Qxc3 29. Qh7 Rh6 $17 (29... Bxb4 30. Qh8+ Ke7 31. Qd8+ Ke6 32. Qd7+ Kf6 33. Qf5+ Ke7 34. Rd7+ Kf8 35. Qxf7#)) 28... Kg8 {[%emt 0:01:09] Repels Qh8+} 29. Bb3 {[%emt 0:00:57] [#]} (29. Qxe5 Re6 30. Qd4 Bf6 $17) (29. Bxe4 $11 g6 30. Qxe5) 29... Rf6 $1 $17 {[%emt 0:05:57]} 30. Qxe5 {[%emt 0:00:11] [#]} (30. Bd5 $17 {was worth a try.}) 30... Bf8 $2 {[%emt 0:00:24]} (30... Qg4 $1 $19 {[%cal Rg4f3] ( -> ...Qf3!)} 31. Bc2 (31. Qxe7 $2 Qf3 $19) 31... Re6 32. Qb8+ Bf8) 31. Re1 {[%emt 0:01:52]} (31. Bd5 {simplifies} Qg4 32. Rf1 b6 33. Qxe4 Qxe4 34. Bxe4 Rd6 35. Bf5) 31... Rf3 {[%emt 0:02:18]} (31... a5 {is interesting.} 32. bxa5 Bd6 33. Qxe4 Qxc3 34. Rd1 Qxa5 35. Qxb7 Qc5) 32. Qxe4 {[%emt 0:00:22]} Qxc3 {[%emt 0:00:32]} 33. Rd1 {[%emt 0:00:29]} Rf6 {[%emt 0:00:46]} 34. Qg4 {[%emt 0:00:40]} Qxb4 {[%emt 0:00:28]} 35. Qxh3 {[%emt 0:00:20]} Qc5 {[%emt 0:00:38]} 36. Qf1 {[%emt 0:00:34]} b5 {[%emt 0:00:26]} ({Better is} 36... g6 $11) 37. Rd5 $14 {[%emt 0:00:22]} Qc3 {[%emt 0:00:00]} 38. Qxb5 {[%emt 0:00:42]} Qc7 {[%emt 0:00:52]} 39. Rf5 {[%emt 0:00:31]} Rxf5 {[%emt 0:00:14]} 40. Qxf5 $16 {[%emt 0:00:03][%mdl 4096] Endgame. KQB-KQB} Bd6 {[%emt 0:00:20]} 41. Qe4 {[%emt 0:00:36]} Kf8 {[%emt 0:00:15]} 42. Ba4 {[%emt 0:00:41][%csl Ga4][%cal Re4e8] White is more active.} g6 {[%emt 0:00:11]} 43. h4 {[%emt 0:00:36]} Bc5 {[%emt 0:00:10]} 44. Kg2 {[%emt 0:00:12]} Qe7 {[%emt 0:00:19]} 45. Qd5 {[%emt 0:00:22]} Qd6 {[%emt 0:00:12]} 46. Qf3 {[%emt 0:00:24]} Kg7 {[%emt 0:00:40]} 47. h5 {[%emt 0:01:02]} gxh5 {[%emt 0:00:14]} 48. Bb3 {[%emt 0:00:35]} (48. Qxh5 $14 Qd4 49. Qg5+ Kh8 50. Qh4+ Qxh4 51. gxh4) 48... Qf6 $11 {[%emt 0:00:34]} 49. Qe2 {[%emt 0:00:15]} (49. Qxh5 Qxf2+ (49... Bxf2 50. Qg4+ Kh6 51. Qf3 $11) 50. Kh3 Qf1+ 51. Kh4 Be7+ 52. Kg4 Qe2+ 53. Kf5 Qxh5+ 54. Ke4 f5+ 55. Ke3 Qg5+ 56. Kd3 Qxg3+ 57. Kd4 Qf4+ 58. Kd3 Qe4+ 59. Kc3 Bb4+ 60. Kb2 Qd4+ 61. Kc1 Qd2+ 62. Kb1 Ba3 63. Be6 Qd1#) 49... Kh6 {[%emt 0:01:24]} 50. Qd2+ {[%emt 0:00:35]} Kg7 {[%emt 0:00:12]} 51. Qe2 {[%emt 0:00:22] Weighted Error Value: White=0.19 (very precise) /Black=0.16 (very precise) .  Missed win:     	---       	Black=1      Mistake:       	White=5     	Black=4      Inaccurate:     	White=4     	Black=4      OK:         	White=19    	Black=16     Best:        	White=2     	Black=2      Strong:       	---       	Black=1} (51. Bxf7 $5 Qxf2+ 52. Qxf2 Bxf2 53. Bxh5 $14) 1/2-1/2